fUSD/lending_fUSD_20240611
["ID","MTS","AMOUNT","RATE_DAILY","PERIOD"]
[329144523,1718136633982,-361.81640691,0.00021096,2]
[329144524,1718136633992,-500.0,0.00021096,2]
[329144525,1718136634003,-613.59880782,0.00021096,2]
[329144526,1718136634013,-500.0,0.00021096,2]
[329144527,1718136634023,-500.0,0.00021096,2]
[329144528,1718136634034,-500.0,0.00021096,2]
[329144529,1718136634044,-200.94084834,0.00021096,2]
[329144530,1718136634054,-262.97091763,0.00021096,2]
[329144531,1718136634064,-1389.9544,0.00021097,2]
[329144532,1718136634074,-500.0,0.00021097,2]
[329144533,1718136634084,-59672.41544968,0.00021097,2]
[329144534,1718136634171,-73551.35282394,0.00021097,2]
[329144535,1718136634183,-439.68382411,0.00021097,2]
[329144536,1718136634200,-1356.47305765,0.00021097,2]
[329144577,1718136639269,-468.68372791,0.00020897,2]
[329144578,1718136639279,-4264.75364445,0.00021097,2]
[329144579,1718136639293,-7327.09162209,0.00021097,2]
[329144580,1718136639321,-468.68372789,0.00020922,2]
[329144581,1718136639331,-2362.92001713,0.00021097,2]
[329144582,1718136639354,-10961.48243283,0.00021097,2]
[329144583,1718136639429,-81057.32408146,0.00021097,2]
[329144607,1718136645989,-23900.0,0.00020288,2]
[329144608,1718136645999,-468.68372789,0.00020947,2]
[329144610,1718136646010,-4006.50304666,0.00021097,2]
[329144612,1718136646021,-100000.0,0.00021097,2]
[329144614,1718136646031,-1000.0,0.00021097,2]
[329144616,1718136646042,-25675.386,0.00021097,2]
[329144618,1718136646052,-6146.786845,0.00021174,4]
[329144620,1718136646063,-616.28742313,0.00021195,2]
[329144622,1718136646074,-6146.786845,0.00021195,4]
[329144624,1718136646085,-1091.53719198,0.00021196,5]
[329144626,1718136646095,-2000.0,0.00021197,2]
[329144627,1718136646106,-200.0,0.00021197,2]
[329144629,1718136646116,-2000.0,0.00021197,2]
[329144630,1718136646127,-200.0,0.00021197,2]
[329144631,1718136646136,-2538.7034,0.00021197,2]
[329144633,1718136646147,-6146.786845,0.00021198,4]
[329144635,1718136646157,-407.98145018,0.00021201,4]
[329144636,1718136646167,-217.55252094,0.00021202,2]
[329144637,1718136646177,-2039.90725103,0.00021203,4]
[329144638,1718136646187,-407.98145018,0.00021207,4]
[329144640,1718136646198,-2039.90725103,0.00021212,4]
[329144642,1718136646210,-1091.53719197,0.00021216,5]
[329144643,1718136646221,-1608.87568645,0.00021217,4]
[329144644,1718136646231,-200.0,0.00021226,2]
[329144645,1718136646241,-6146.786845,0.0002124,4]
[329144646,1718136646251,-2039.90725103,0.00021245,4]
[329144647,1718136646262,-1608.87568645,0.00021272,4]
[329144648,1718136646272,-407.98145018,0.00021272,4]
[329144649,1718136646283,-6146.786845,0.00021273,4]
[329144650,1718136646293,-2039.90725103,0.00021274,4]
[329144652,1718136646303,-1608.87568645,0.00021276,4]
[329144653,1718136646313,-407.98145018,0.00021279,4]
[329144655,1718136646323,-6146.786845,0.00021281,4]
[329144657,1718136646333,-1608.87568645,0.0002129,4]
[329144659,1718136646343,-165.18734495,0.00021294,2]
[329144661,1718136646353,-2039.90725103,0.00021298,4]
[329144663,1718136646362,-489.0,0.000213,4]
[329144665,1718136646373,-305.0,0.000213,2]
[329144667,1718136646383,-150.0,0.000213,2]
[329144668,1718136646393,-160.0,0.000213,2]
[329144670,1718136646403,-211.0,0.000213,4]
[329144672,1718136646413,-500.0,0.00021324,2]
[329144674,1718136646423,-151.98,0.00021371,2]
[329144675,1718136646433,-200.0,0.00021373,2]
[329144676,1718136646443,-4122.7439467,0.00021379,3]
[329144677,1718136646453,-15751.14129022,0.0002138,3]
[329144678,1718136646464,-1045.45246624,0.00021381,3]
[329144679,1718136646474,-3144.88254174,0.00021382,3]
[329144680,1718136646487,-1581.14283679,0.00021382,3]
[329144681,1718136646551,-372.35499995,0.00021382,3]
[329144682,1718136646602,-311.0564712,0.00021382,3]
[329144696,1718136646802,-10341.70444054,0.00021382,3]
[329144698,1718136646817,-5227.26233092,0.00021389,3]
[329144700,1718136646829,-4122.7439467,0.00021389,3]
[329144702,1718136646840,-4122.7439467,0.00021391,3]
[329144704,1718136646850,-15751.14129022,0.00021391,3]
[329144706,1718136646860,-14144.3437476,0.00021393,2]
[329144708,1718136646870,-3034.4454528,0.00021393,2]
[329144710,1718136646880,-33258.6278498,0.00021393,2]
[329144712,1718136646891,-390.1300972,0.00021393,2]
[329144714,1718136646901,-47676.2750835,0.00021393,2]
[329144716,1718136646911,-5227.26233092,0.00021394,3]
[329144718,1718136646921,-1045.45246624,0.00021395,3]
[329144720,1718136646931,-441.68892043,0.00021396,2]
[329144722,1718136646942,-1045.45246624,0.00021396,3]
[329144724,1718136646952,-2220.76815436,0.00021396,2]
[329144726,1718136646962,-362.81476569,0.00021397,2]
[329144728,1718136646971,-1362.97468143,0.00021397,2]
[329144730,1718136646981,-5227.26233092,0.00021398,3]
[329144732,1718136646991,-217.55252094,0.00021408,2]
[329144734,1718136647001,-2000.0,0.00021409,2]
[329144736,1718136647011,-200.0,0.00021409,2]
[329144738,1718136647021,-2000.0,0.00021409,2]
[329144740,1718136647031,-200.0,0.00021409,2]
[329144742,1718136647077,-500.0,0.00021423,2]
[329144744,1718136647094,-200.0,0.00021423,2]
[329144745,1718136647110,-155.0,0.00021468,2]
[329144747,1718136647121,-532.0,0.0002147,2]
[329144749,1718136647133,-6262.20752304,0.0002147,2]
[329144751,1718136647146,-200.0,0.0002147,2]
[329144752,1718136647160,-1392.19071084,0.0002147,2]
[329144754,1718136647171,-155.0,0.0002147,2]
[329144756,1718136647181,-619.28128396,0.0002147,2]
[329144757,1718136647193,-287.55368748,0.0002147,2]
[329144759,1718136647204,-310.94648103,0.0002147,2]
[329144761,1718136647215,-3386.25740591,0.0002147,2]
[329144762,1718136647225,-1271.98730294,0.0002147,2]
[329144764,1718136647237,-688.42270304,0.0002147,2]
[329144766,1718136647248,-155.20794469,0.0002147,2]
[329144768,1718136647260,-265.45840376,0.0002147,2]
[329144769,1718136647272,-155.0,0.0002147,2]
[329144771,1718136647283,-275.96686544,0.0002147,2]
[329144773,1718136647293,-620.85973177,0.0002147,2]
[329144774,1718136647305,-155.28927007,0.0002147,2]
[329144776,1718136647315,-155.28236147,0.0002147,2]
[329144778,1718136647327,-281.11164112,0.0002147,2]
[329144780,1718136647340,-235.01777921,0.0002147,2]
[329144782,1718136647352,-155.0,0.0002147,2]
[329144783,1718136647365,-257.9877105,0.00021472,2]
[329144785,1718136647377,-1047.10843307,0.00021472,2]
[329144787,1718136647390,-222.00410778,0.00021483,2]
[329144789,1718136647403,-1100.0,0.000215,7]
[329144790,1718136647415,-500.0,0.00021582,2]
[329144792,1718136647427,-1700.0,0.000216,7]
[329144794,1718136647438,-217.55252094,0.00021613,2]
[329144796,1718136647450,-2000.0,0.00021623,2]
[329144798,1718136647461,-200.0,0.00021623,2]
[329144800,1718136647473,-2000.0,0.00021623,2]
[329144801,1718136647483,-200.0,0.00021623,2]
[329144803,1718136647493,-315.3731081,0.00021682,2]
[329144805,1718136647503,-2300.0,0.000217,7]
[329144807,1718136647513,-500.0,0.00021741,2]
[329144808,1718136647524,-200.0,0.00021741,2]
[329144810,1718136647534,-2900.0,0.000218,7]
[329144812,1718136647545,-7500.0,0.000218,2]
[329144815,1718136647562,-219.65,0.00021808,3]
[329144817,1718136647574,-10000.0,0.00021817,2]
[329144819,1718136647584,-1000.0,0.00021817,2]
[329144820,1718136647595,-179.77556321,0.00021817,2]
[329144822,1718136647606,-617.47452038,0.00021817,2]
[329144824,1718136647616,-217.55252094,0.00021818,2]
[329144826,1718136647627,-488.13834394,0.00021818,2]
[329144827,1718136647638,-2000.0,0.00021839,2]
[329144829,1718136647654,-200.0,0.00021839,2]
[329144831,1718136647665,-2000.0,0.00021839,2]
[329144833,1718136647676,-200.0,0.00021839,2]
[329144834,1718136647687,-500.0,0.000219,7]
[329144836,1718136647698,-18342.63837257,0.000219,2]
[329144838,1718136647710,-150.0,0.000219,3]
[329144840,1718136647720,-250.0,0.000219,2]
[329144842,1718136647733,-448.7,0.000219,2]
[329144844,1718136647744,-151.98,0.00021907,2]
[329144846,1718136647755,-245.67646761,0.00021907,2]
[329144847,1718136647765,-4500.0,0.0002191,2]
[329144849,1718136647775,-539.64542846,0.00021915,2]
[329144851,1718136647786,-155.0,0.00021915,2]
[329144853,1718136647796,-701.54,0.00021917,2]
[329144855,1718136647815,-500.0,0.00021917,2]
[329144856,1718136647826,-630.51737386,0.00021917,2]
[329144858,1718136647836,-496.85913553,0.00021917,2]
[329144860,1718136647846,-200.0,0.00021917,2]
[329144861,1718136647856,-500.0,0.00021917,2]
[329144863,1718136647866,-151.0,0.00021917,2]
[329144865,1718136647877,-529.21329948,0.00021917,2]
[329144867,1718136647887,-151.0,0.00021917,2]
[329144869,1718136647897,-505.01560759,0.00021917,2]
[329144870,1718136647909,-518.0519516,0.00021917,2]
[329144872,1718136647920,-510.82075699,0.00021917,2]
[329144874,1718136647930,-151.0,0.00021917,2]
[329144876,1718136647940,-213.162486,0.00021917,2]
[329144878,1718136647950,-500.0,0.00021917,2]
[329144879,1718136647960,-351.04862673,0.00021917,2]
[329144881,1718136647970,-595.46,0.00021917,2]
[329144883,1718136647981,-502.5255567,0.00021917,2]
[329144885,1718136647991,-500.0,0.00021917,2]
[329144887,1718136648001,-500.0,0.00021917,2]
[329144888,1718136648012,-500.0,0.00021917,2]
[329144890,1718136648022,-500.0,0.00021917,2]
[329144892,1718136648033,-500.0,0.00021917,2]
[329144894,1718136648043,-500.0,0.00021917,2]
[329144896,1718136648053,-500.0,0.00021917,2]
[329144898,1718136648063,-500.0,0.00021917,2]
[329144899,1718136648074,-500.0,0.00021917,2]
[329144901,1718136648084,-527.32746304,0.00021917,2]
[329144903,1718136648094,-500.0,0.00021917,2]
[329144905,1718136648104,-500.0,0.00021917,2]
[329144906,1718136648113,-500.0,0.00021917,2]
[329144908,1718136648123,-500.0,0.00021917,2]
[329144910,1718136648133,-500.0,0.00021917,2]
[329144912,1718136648143,-500.0,0.00021917,2]
[329144914,1718136648154,-719.67,0.00021917,2]
[329144915,1718136648164,-534.31765943,0.00021917,2]
[329144917,1718136648177,-641.3,0.00021917,2]
[329144919,1718136648188,-500.0,0.00021917,2]
[329144921,1718136648199,-162.43493661,0.00021917,2]
[329144923,1718136648210,-151.0,0.00021917,2]
[329144924,1718136648220,-151.0,0.00021917,2]
[329144925,1718136648231,-500.0,0.00021917,2]
[329144926,1718136648241,-516.28125047,0.00021917,2]
[329144927,1718136648251,-500.0,0.00021917,2]
[329144928,1718136648261,-500.0,0.00021917,2]
[329144929,1718136648271,-500.0,0.00021917,2]
[329144930,1718136648281,-500.0,0.00021917,2]
[329144931,1718136648291,-671.84,0.00021917,2]
[329144932,1718136648301,-500.0,0.00021917,2]
[329144933,1718136648310,-500.0,0.00021917,2]
[329144934,1718136648320,-513.64264904,0.00021917,2]
[329144935,1718136648330,-500.0,0.00021917,2]
[329144936,1718136648340,-500.0,0.00021917,2]
[329144937,1718136648350,-500.0,0.00021917,2]
[329144939,1718136648360,-500.0,0.00021917,2]
[329144941,1718136648370,-500.0,0.00021917,2]
[329144943,1718136648380,-500.0,0.00021917,2]
[329144945,1718136648390,-697.77,0.00021917,2]
[329144946,1718136648400,-500.0,0.00021917,2]
[329144948,1718136648411,-500.0,0.00021917,2]
[329144951,1718136648422,-500.0,0.00021917,2]
[329144952,1718136648433,-500.0,0.00021917,2]
[329144954,1718136648443,-506.3193437,0.00021917,2]
[329144957,1718136648455,-500.0,0.00021917,2]
[329144959,1718136648465,-500.0,0.00021917,2]
[329144961,1718136648476,-500.0,0.00021917,2]
[329144963,1718136648486,-500.0,0.00021917,2]
[329144965,1718136648496,-500.0,0.00021917,2]
[329144967,1718136648506,-500.0,0.00021917,2]
[329144968,1718136648516,-500.0,0.00021917,2]
[329144970,1718136648526,-500.0,0.00021917,2]
[329144972,1718136648536,-507.96092136,0.00021917,2]
[329144974,1718136648546,-500.0,0.00021917,2]
[329144976,1718136648556,-500.0,0.00021917,2]
[329144978,1718136648566,-500.0,0.00021917,2]
[329144980,1718136648576,-500.0,0.00021917,2]
[329144982,1718136648586,-500.0,0.00021917,2]
[329144984,1718136648596,-794.18,0.00021917,2]
[329144986,1718136648606,-500.0,0.00021917,2]
[329144988,1718136648617,-618.17,0.00021917,2]
[329144990,1718136648627,-500.0,0.00021917,2]
[329144992,1718136648637,-500.0,0.00021917,2]
[329144994,1718136648651,-500.0,0.00021917,2]
[329144997,1718136648666,-500.0,0.00021917,2]
[329144999,1718136648677,-500.0,0.00021917,2]
[329145001,1718136648687,-500.0,0.00021917,2]
[329145002,1718136648697,-514.69375153,0.00021917,2]
[329145004,1718136648708,-500.0,0.00021917,2]
[329145006,1718136648719,-500.0,0.00021917,2]
[329145008,1718136648730,-508.71925221,0.00021917,2]
[329145010,1718136648742,-500.0,0.00021917,2]
[329145013,1718136648753,-500.0,0.00021917,2]
[329145015,1718136648764,-535.21265294,0.00021917,2]
[329145017,1718136648776,-500.0,0.00021917,2]
[329145019,1718136648788,-716.61,0.00021917,2]
[329145021,1718136648798,-500.0,0.00021917,2]
[329145023,1718136648824,-500.0,0.00021917,2]
[329145025,1718136648834,-500.0,0.00021917,2]
[329145027,1718136648845,-500.0,0.00021917,2]
[329145029,1718136648856,-500.0,0.00021917,2]
[329145031,1718136648866,-500.0,0.00021917,2]
[329145033,1718136648877,-500.0,0.00021917,2]
[329145035,1718136648888,-500.0,0.00021917,2]
[329145037,1718136648898,-290.92768892,0.00021917,2]
[329145039,1718136648912,-500.0,0.00021917,2]
[329145041,1718136648922,-500.0,0.00021917,2]
[329145043,1718136648933,-500.0,0.00021917,2]
[329145045,1718136648943,-513.26502424,0.00021917,2]
[329145047,1718136648953,-500.0,0.00021917,2]
[329145049,1718136648963,-513.68319726,0.00021917,2]
[329145051,1718136648973,-510.0,0.00021917,2]
[329145053,1718136648984,-500.0,0.00021917,2]
[329145055,1718136648995,-500.0,0.00021917,2]
[329145057,1718136649004,-500.0,0.00021917,2]
[329145059,1718136649015,-923.61,0.00021917,2]
[329145061,1718136649025,-500.0,0.00021917,2]
[329145063,1718136649035,-516.03562867,0.00021917,2]
[329145065,1718136649045,-530.07558012,0.00021917,2]
[329145067,1718136649055,-500.0,0.00021917,2]
[329145070,1718136649066,-500.0,0.00021917,2]
[329145071,1718136649076,-500.0,0.00021917,2]
[329145074,1718136649086,-500.0,0.00021917,2]
[329145075,1718136649096,-595.31,0.00021917,2]
[329145078,1718136649106,-532.3358469,0.00021917,2]
[329145080,1718136649116,-500.0,0.00021917,2]
[329145082,1718136649126,-500.0,0.00021917,2]
[329145084,1718136649137,-500.0,0.00021917,2]
[329145086,1718136649147,-404.38980021,0.00021917,2]
[329145088,1718136649158,-500.0,0.00021917,2]
[329145090,1718136649169,-500.0,0.00021917,2]
[329145092,1718136649179,-650.76,0.00021917,2]
[329145094,1718136649189,-518.35716674,0.00021917,2]
[329145096,1718136649199,-500.0,0.00021917,2]
[329145098,1718136649209,-151.0,0.00021917,2]
[329145100,1718136649219,-500.0,0.00021917,2]
[329145102,1718136649229,-500.0,0.00021917,2]
[329145104,1718136649240,-151.0,0.00021917,2]
[329145106,1718136649251,-500.0,0.00021917,2]
[329145108,1718136649262,-151.0,0.00021917,2]
[329145110,1718136649272,-151.0,0.00021917,2]
[329145112,1718136649284,-500.0,0.00021917,2]
[329145114,1718136649294,-500.0,0.00021917,2]
[329145116,1718136649304,-500.0,0.00021917,2]
[329145118,1718136649315,-500.0,0.00021917,2]
[329145120,1718136649326,-151.0,0.00021917,2]
[329145122,1718136649337,-151.0,0.00021917,2]
[329145124,1718136649346,-158.826008,0.00021917,2]
[329145126,1718136649356,-500.0,0.00021917,2]
[329145128,1718136649366,-500.0,0.00021917,2]
[329145130,1718136649375,-528.51180684,0.00021917,2]
[329145132,1718136649386,-500.0,0.00021917,2]
[329145134,1718136649395,-500.0,0.00021917,2]
[329145136,1718136649406,-500.0,0.00021917,2]
[329145138,1718136649416,-566.8731959,0.00021917,2]
[329145140,1718136649426,-500.0,0.00021917,2]
[329145142,1718136649435,-500.0,0.00021917,2]
[329145144,1718136649447,-500.0,0.00021917,2]
[329145146,1718136649456,-512.95,0.00021917,2]
[329145148,1718136649467,-1229.53,0.00021917,2]
[329145150,1718136649478,-500.0,0.00021917,2]
[329145152,1718136649488,-500.0,0.00021917,2]
[329145154,1718136649498,-500.0,0.00021917,2]
[329145156,1718136649507,-509.9164874,0.00021917,2]
[329145158,1718136649518,-608.41,0.00021917,2]
[329145160,1718136649528,-500.0,0.00021917,2]
[329145162,1718136649538,-500.0,0.00021917,2]
[329145164,1718136649548,-809.77,0.00021917,2]
[329145166,1718136649557,-500.0,0.00021917,2]
[329145168,1718136649567,-599.24,0.00021917,2]
[329145170,1718136649578,-500.0,0.00021917,2]
[329145172,1718136649588,-500.0,0.00021917,2]
[329145174,1718136649598,-500.0,0.00021917,2]
[329145176,1718136649609,-500.0,0.00021917,2]
[329145178,1718136649619,-500.0,0.00021917,2]
[329145180,1718136649630,-500.0,0.00021917,2]
[329145182,1718136649640,-500.0,0.00021917,2]
[329145184,1718136649654,-500.0,0.00021917,2]
[329145186,1718136649666,-151.0,0.00021917,2]
[329145188,1718136649676,-151.0,0.00021917,2]
[329145190,1718136649686,-151.0,0.00021917,2]
[329145192,1718136649698,-500.0,0.00021917,2]
[329145194,1718136649709,-500.0,0.00021917,2]
[329145196,1718136649719,-500.0,0.00021917,2]
[329145198,1718136649731,-500.0,0.00021917,2]
[329145200,1718136649742,-500.0,0.00021917,2]
[329145202,1718136649752,-500.0,0.00021917,2]
[329145204,1718136649762,-500.0,0.00021917,2]
[329145206,1718136649772,-500.0,0.00021917,2]
[329145208,1718136649782,-500.0,0.00021917,2]
[329145210,1718136649792,-500.0,0.00021917,2]
[329145212,1718136649814,-500.0,0.00021917,2]
[329145214,1718136649825,-935.15,0.00021917,2]
[329145216,1718136649835,-500.0,0.00021917,2]
[329145218,1718136649845,-500.0,0.00021917,2]
[329145220,1718136649855,-500.0,0.00021917,2]
[329145222,1718136649864,-510.3,0.00021917,2]
[329145224,1718136649874,-408.80858122,0.00021917,2]
[329145226,1718136649884,-500.0,0.00021917,2]
[329145228,1718136649893,-500.0,0.00021917,2]
[329145230,1718136649903,-500.0,0.00021917,2]
[329145232,1718136649914,-500.0,0.00021917,2]
[329145234,1718136649924,-500.0,0.00021917,2]
[329145237,1718136649934,-500.0,0.00021917,2]
[329145238,1718136649944,-513.71064316,0.00021917,2]
[329145259,1718136649954,-676.8,0.00021917,2]
[329145263,1718136650172,-500.0,0.00021917,2]
[329145265,1718136650191,-500.0,0.00021917,2]
[329145267,1718136650207,-919.6,0.00021917,2]
[329145269,1718136650217,-500.0,0.00021917,2]
[329145271,1718136650227,-500.0,0.00021917,2]
[329145273,1718136650237,-500.0,0.00021917,2]
[329145275,1718136650247,-500.0,0.00021917,2]
[329145277,1718136650258,-295.83967052,0.00021917,2]
[329145279,1718136650269,-574.04,0.00021917,2]
[329145281,1718136650280,-688.3,0.00021917,2]
[329145283,1718136650290,-523.42,0.00021917,2]
[329145285,1718136650300,-500.0,0.00021917,2]
[329145287,1718136650311,-589.24061277,0.00021917,2]
[329145289,1718136650321,-500.0,0.00021917,2]
[329145291,1718136650332,-536.2,0.00021917,2]
[329145293,1718136650342,-500.0,0.00021917,2]
[329145295,1718136650353,-500.0,0.00021917,2]
[329145297,1718136650363,-500.0,0.00021917,2]
[329145299,1718136650373,-607.7,0.00021917,2]
[329145301,1718136650383,-502.58255957,0.00021917,2]
[329145303,1718136650394,-500.0,0.00021917,2]
[329145305,1718136650406,-500.0,0.00021917,2]
[329145307,1718136650417,-505.84503374,0.00021917,2]
[329145309,1718136650428,-500.0,0.00021917,2]
[329145311,1718136650438,-1088.67,0.00021917,2]
[329145313,1718136650449,-500.0,0.00021917,2]
[329145315,1718136650459,-502.58341612,0.00021917,2]
[329145317,1718136650469,-500.0,0.00021917,2]
[329145319,1718136650479,-500.0,0.00021917,2]
[329145321,1718136650489,-500.0,0.00021917,2]
[329145323,1718136650500,-151.0,0.00021917,2]
[329145325,1718136650510,-500.0,0.00021917,2]
[329145327,1718136650520,-151.0,0.00021917,2]
[329145329,1718136650531,-1917.16,0.00021917,2]
[329145331,1718136650541,-500.0,0.00021917,2]
[329145333,1718136650552,-163.493183,0.00021917,2]
[329145335,1718136650562,-500.0,0.00021917,2]
[329145337,1718136650572,-500.0,0.00021917,2]
[329145339,1718136650583,-500.0,0.00021917,2]
[329145341,1718136650593,-500.0,0.00021917,2]
[329145342,1718136650604,-500.0,0.00021917,2]
[329145343,1718136650614,-500.0,0.00021917,2]
[329145344,1718136650624,-500.0,0.00021917,2]
[329145345,1718136650634,-500.0,0.00021917,2]
[329145346,1718136650644,-1378.95,0.00021917,2]
[329145347,1718136650660,-500.0,0.00021917,2]
[329145348,1718136650670,-500.0,0.00021917,2]
[329145349,1718136650680,-500.0,0.00021917,2]
[329145350,1718136650690,-457.22063875,0.00021917,2]
[329145352,1718136650700,-500.0,0.00021917,2]
[329145354,1718136650711,-500.0,0.00021917,2]
[329145356,1718136650721,-500.0,0.00021917,2]
[329145358,1718136650731,-500.0,0.00021917,2]
[329145360,1718136650744,-625.17399914,0.00021917,2]
[329145362,1718136650755,-500.0,0.00021917,2]
[329145364,1718136650764,-500.0,0.00021917,2]
[329145366,1718136650775,-500.0,0.00021917,2]
[329145368,1718136650786,-500.0,0.00021917,2]
[329145371,1718136650796,-542.08937996,0.00021917,2]
[329145373,1718136650820,-506.1977703,0.00021917,2]
[329145375,1718136650831,-756.43,0.00021917,2]
[329145377,1718136650842,-500.0,0.00021917,2]
[329145379,1718136650852,-475.76280239,0.00021917,2]
[329145381,1718136650861,-506.34468894,0.00021917,2]
[329145383,1718136650871,-500.0,0.00021917,2]
[329145385,1718136650880,-664.56,0.00021917,2]
[329145387,1718136650890,-946.25,0.00021917,2]
[329145389,1718136650900,-1424.89,0.00021917,2]
[329145391,1718136650913,-523.49,0.00021917,2]
[329145393,1718136650923,-500.0,0.00021917,2]
[329145395,1718136650934,-500.0,0.00021917,2]
[329145397,1718136650944,-151.0,0.00021917,2]
[329145399,1718136650954,-500.0,0.00021917,2]
[329145401,1718136650965,-151.0,0.00021917,2]
[329145403,1718136650975,-151.0,0.00021917,2]
[329145406,1718136650986,-151.0,0.00021917,2]
[329145408,1718136650997,-500.0,0.00021917,2]
[329145409,1718136651007,-500.0,0.00021917,2]
[329145412,1718136651018,-500.0,0.00021917,2]
[329145414,1718136651028,-500.0,0.00021917,2]
[329145416,1718136651038,-500.0,0.00021917,2]
[329145418,1718136651049,-151.0,0.00021917,2]
[329145420,1718136651059,-151.0,0.00021917,2]
[329145422,1718136651068,-500.0,0.00021917,2]
[329145424,1718136651079,-151.0,0.00021917,2]
[329145426,1718136651088,-169.12119803,0.00021917,2]
[329145428,1718136651098,-151.0,0.00021917,2]
[329145430,1718136651108,-2644.29,0.00021917,2]
[329145432,1718136651118,-353.51112531,0.00021917,2]
[329145434,1718136651128,-1471.86,0.00021917,2]
[329145436,1718136651138,-500.0,0.00021917,2]
[329145438,1718136651147,-549.37051667,0.00021917,2]
[329145439,1718136651159,-500.0,0.00021917,2]
[329145441,1718136651169,-860.64,0.00021917,2]
[329145444,1718136651179,-500.0,0.00021917,2]
[329145446,1718136651189,-500.0,0.00021917,2]
[329145448,1718136651199,-2191.75,0.00021917,2]
[329145450,1718136651208,-553.01,0.00021917,2]
[329145452,1718136651218,-500.0,0.00021917,2]
[329145454,1718136651230,-512.29293532,0.00021917,2]
[329145456,1718136651241,-500.0,0.00021917,2]
[329145458,1718136651250,-500.0,0.00021917,2]
[329145460,1718136651261,-500.0,0.00021917,2]
[329145462,1718136651271,-1340.01,0.00021917,2]
[329145464,1718136651281,-500.0,0.00021917,2]
[329145466,1718136651291,-666.83,0.00021917,2]
[329145468,1718136651302,-506.37102291,0.00021917,2]
[329145470,1718136651312,-500.0,0.00021917,2]
[329145472,1718136651323,-500.0,0.00021917,2]
[329145474,1718136651333,-600.1691702,0.00021917,2]
[329145476,1718136651343,-500.0,0.00021917,2]
[329145478,1718136651353,-2569.28,0.00021917,2]
[329145480,1718136651364,-500.0,0.00021917,2]
[329145482,1718136651374,-500.0,0.00021917,2]
[329145484,1718136651385,-1042.91,0.00021917,2]
[329145486,1718136651396,-500.0,0.00021917,2]
[329145488,1718136651408,-500.0,0.00021917,2]
[329145490,1718136651420,-500.0,0.00021917,2]
[329145492,1718136651430,-500.0,0.00021917,2]
[329145494,1718136651440,-500.0,0.00021917,2]
[329145496,1718136651450,-500.0,0.00021917,2]
[329145498,1718136651460,-500.0,0.00021917,2]
[329145500,1718136651470,-500.0,0.00021917,2]
[329145502,1718136651480,-964.06,0.00021917,2]
[329145504,1718136651490,-500.0,0.00021917,2]
[329145506,1718136651500,-500.0,0.00021917,2]
[329145508,1718136651511,-500.0,0.00021917,2]
[329145510,1718136651522,-500.0,0.00021917,2]
[329145513,1718136651533,-500.0,0.00021917,2]
[329145515,1718136651543,-503.35966806,0.00021917,2]
[329145517,1718136651554,-1123.54,0.00021917,2]
[329145519,1718136651565,-500.0,0.00021917,2]
[329145521,1718136651575,-500.0,0.00021917,2]
[329145523,1718136651585,-500.0,0.00021917,2]
[329145525,1718136651595,-500.0,0.00021917,2]
[329145527,1718136651605,-1128.71,0.00021917,2]
[329145529,1718136651615,-500.0,0.00021917,2]
[329145531,1718136651626,-500.0,0.00021917,2]